Cogmind - Beta 9.6 @@@ ROGUE MODE // 2020.06.22 @ 19:47:22 Player: Kenzurith Result: Destroyed by P-70 Sage with High-powered Shock Rifle Performance ------------- Evolutions (6) 3000 Regions Visited (12) 2400 Robots Destroyed (133) 665 Value Destroyed (4920) 4920 Prototype IDs (25) 500 Alien Tech Used (0) 0 Bonus (901) 901 TOTAL SCORE: 12386 Bonus ------- High Alert Combat Kills 256 Follower Combat Kills 88 Entered Garrisons 200 Used RIF Installer 500 Friendly Fire -143 Cogmind --------- Core Integrity 0/1150 Matter 256/300 Energy 98/100 System Corruption 20% Temperature Cool (0) Movement Core (50) Location -4/Armory Parts ------- > --- POWER (2) -------- (None) > --- PROPULSION (6) --- (None) > --- UTILITY (9) ------ Advanced Signal Interpreter Improved Core Analyzer Improved Hacking Suite Relay Coupler [NC] (22) > --- WEAPON (2) ------- (None) > --- INVENTORY (4) ---- Improved Medium Armor Plating Advanced Hardlight Generator Improved Remote Force Field Improved Remote Datajack Peak State ------------ > --- POWER ------------ Micro Nuclear Core Micro Fission Core > --- PROPULSION ------- Centrium Wheel Antigrav System VTOL Module Xenon Bombardment Thruster Xenon Bombardment Thruster Xenon Bombardment Thruster > --- UTILITY ---------- Long-range Sensor Array Advanced Signal Interpreter Improved Transmission Jammer Maneuvering Thrusters Hacking Suite Hacking Suite Improved Hacking Suite Relay Coupler [NC] Relay Coupler [Swarmer] > --- WEAPON ----------- Railgun Improved Remote Datajack > --- INVENTORY -------- Centrium Leg Medium Storage Unit Transmission Jammer Railgun [Rating: 82] Favorites ----------- Power Micro Nuclear Core Engine Improved Ion Engine Power Core Micro Nuclear Core Propulsion Light Treads Treads Light Treads Leg Aluminum Leg Wheel Centrium Wheel Hover Unit Antigrav System Flight Unit Xenon Bombardment Thruster Utility Large Storage Unit Device Long-range Sensor Array Storage Large Storage Unit Processor Advanced Signal Interpreter Hackware Hacking Suite Protection Light Armor Plating Weapon Improved Assault Rifle Energy Gun Improved Medium Laser Ballistic Gun Improved Assault Rifle Ballistic Cannon Magnetic Acceleration Cannon Launcher Grenade Launcher Special Weapon Remote Datajack Build | -11 -10 -9 -8 -8 -8 -7 -6 -5 -5 -5 -4 -4 ------- Run | Scr Mat Mat Mat Gar Mat Fac Fac Fac Was Fac Fac Arm Slots Evolved 12 | . . 2 2 . . 2 2 2 . . 2 . Power 1 | . . . . . . 1 . . . . . . Propulsion 4 | . . . 1 . . . 1 . . . 2 . Utility 7 | . . 2 1 . . 1 1 2 . . . . Weapon . | . . . . . . . . . . . . . Parts Attached 181 | 6 15 31 36 20 16 14 12 1 . . 16 14 Power 18 | 1 2 3 2 2 1 3 . . . . 3 1 Engine 8 | 1 1 3 1 2 . . . . . . . . Core 10 | . 1 . 1 . 1 3 . . . . 3 1 Reactor . | . . . . . . . . . . . . . Propulsion 56 | 2 6 8 12 8 5 5 3 . . . 6 1 Treads 19 | 2 1 4 5 5 1 . . . . . . 1 Leg 20 | . 5 4 6 3 . . . . . . 2 . Wheel 3 | . . . 1 . . . . . . . 2 . Hover 1 | . . . . . . . . . . . 1 . Flight 13 | . . . . . 4 5 3 . . . 1 . Utility 54 | 1 4 10 10 3 5 4 5 1 . . 2 9 Device 19 | . 2 2 1 1 1 2 3 1 . . 1 5 Storage 14 | 1 2 4 5 . . . 1 . . . . 1 Processor 6 | . . . . . 1 1 1 . . . . 3 Hackware 6 | . . . 1 . 3 1 . . . . 1 . Protection 9 | . . 4 3 2 . . . . . . . . Artifact . | . . . . . . . . . . . . . Weapon 53 | 2 3 10 12 7 5 2 4 . . . 5 3 Energy Gun 2 | . . 1 . . 1 . . . . . . . Energy Cannon . | . . . . . . . . . . . . . Ballistic Gun 37 | 2 3 5 9 3 4 1 3 . . . 4 3 Ballistic Cannon 4 | . . 2 . 2 . . . . . . . . Launcher 7 | . . 2 3 2 . . . . . . . . Special Weapon 3 | . . . . . . 1 1 . . . 1 . Impact Weapon . | . . . . . . . . . . . . . Slashing Weapon . | . . . . . . . . . . . . . Piercing Weapon . | . . . . . . . . . . . . . Special Melee Weapon . | . . . . . . . . . . . . . Unidentified Prototypes 6 | . . 2 1 . 2 . 1 . . . . . Parts Lost 56 | . 4 2 5 9 1 5 3 . . . 16 11 Power 6 | . 1 . . 1 . 1 . . . . 2 1 Propulsion 19 | . 1 . 1 5 . 2 2 . . . 6 2 Utility 16 | . 1 2 2 . . 1 . . . . 6 4 Weapon 15 | . 1 . 2 3 1 1 1 . . . 2 4 Highest Loss Streak 13 | . 2 1 2 7 1 4 2 . . . 13 9 Average Slot Usage (%) 92 | . 91 99 99 95 96 95 90 88 88 88 85 55 Engine 5 | . 9 11 7 6 6 . . . . . . . Core 4 | . 3 . 1 2 2 14 13 11 11 11 8 2 Treads 10 | . 22 10 8 19 19 . . . . . . 1 Leg 6 | . 5 11 14 3 . . . . . . . 4 Wheel 1 | . . . 3 . . . . . . . 6 . Flight 5 | . . . . . 7 23 25 23 23 23 18 . Device 5 | . 6 3 5 2 3 6 6 17 17 17 14 5 Storage 16 | . 14 25 27 27 16 . 4 . . . . 4 Processor 2 | . . . . . 2 8 6 5 5 5 5 11 Hackware 10 | . . . 8 9 13 26 26 23 23 23 22 14 Protection 4 | . . 14 3 6 6 . . . . . . . Ballistic Gun 12 | . 28 19 17 2 6 6 4 5 5 5 4 9 Ballistic Cannon 2 | . . . . 14 10 . . . . . . . Naked Turns . | . . . . . . . . . . . . . Heaviest Build 82 | 11 21 56 71 82 82 21 28 21 21 21 25 30 Greatest Support 70 | 40 40 40 60 70 70 21 28 26 26 26 30 30 Greatest Overweight (x) 23 | 1 1 2 5 23 1 . . . . . 1 2 Average Overweight (x) . | . . 1 2 1 . . . . . . . . Largest Inventory Capacity 22 | 6 10 20 22 22 22 4 8 4 4 4 4 8 Average Capacity 13 | 5 6 15 21 22 15 4 7 4 4 4 4 7 Most Carried 22 | 6 10 20 22 22 22 4 8 3 4 4 4 8 Average Carried 12 | 2 5 14 21 21 14 3 6 3 3 4 3 5 Final Capacity 22 | 6 10 20 22 22 4 4 4 4 4 4 4 4 Final Carried 22 | 6 10 20 22 22 4 4 4 3 4 4 3 4 Class Distribution -------------------- 30% | Mutant 24% | Hauler-Mutant 20% | Scavenger-Mutant 14% | Hacker-Sprinter 9% | Hacker-Mutant Dominant Class ---------------- Mutant | -10/Materials Mutant | -9/Materials Hauler-Mutant | -8/Materials Scavenger-Mutant | -8/Garrison Scavenger-Mutant | -8/Materials Hacker-Sprinter | -7/Factory Hacker-Sprinter | -6/Factory Hacker-Sprinter | -5/Factory Hacker-Sprinter | -5/Waste Hacker-Sprinter | -5/Factory Hacker-Mutant | -4/Factory Mutant | -4/Armory Resources | -11 -10 -9 -8 -8 -8 -7 -6 -5 -5 -5 -4 -4 ----------- Run | Scr Mat Mat Mat Gar Mat Fac Fac Fac Was Fac Fac Arm Matter Collected 4547 | 260 525 1038 709 698 420 17 191 . . . 161 528 Remotely . | . . . . . . . . . . . . . Salvage Created 5217 | . 653 1706 1350 704 271 80 46 . . . 88 319 Parts 293 | . 43 90 61 43 19 5 3 . . . 10 19 Haulers Intercepted 8 | . 1 4 1 . 2 . . . . . . . Recyclers Shooed 14 | . 3 6 4 . 1 . . . . . . . Parts Field Recycled . | . . . . . . . . . . . . . Retrieved Matter . | . . . . . . . . . . . . . Parts Self-Destructed . | . . . . . . . . . . . . . Prevented . | . . . . . . . . . . . . . Kills | -11 -10 -9 -8 -8 -8 -7 -6 -5 -5 -5 -4 -4 ------- Run | Scr Mat Mat Mat Gar Mat Fac Fac Fac Was Fac Fac Arm Combat Hostiles Destroyed 104 | . 16 33 20 16 6 1 2 . . . 2 8 Guns 68 | . 16 24 15 . 1 . 2 . . . 2 8 Cannons 14 | . . 1 . 8 5 . . . . . . . AOE 22 | . . 8 5 8 . 1 . . . . . . Classes Destroyed 14 | . 4 6 1 1 1 1 . . . . . . Worker 6 | . . 3 3 . . . . . . . . . Builder 2 | . . 1 1 . . . . . . . . . Hauler 8 | . 1 4 1 . 2 . . . . . . . Recycler 9 | . 2 3 4 . . . . . . . . . Operator 1 | . . . . . 1 . . . . . . . Watcher 3 | . . 1 1 . . 1 . . . . . . Swarmer 21 | . 6 4 . 3 2 . 1 . . . . 5 Grunt 49 | . 10 18 11 7 3 . . . . . . . Brawler 3 | . . 2 1 . . . . . . . . . Duelist 2 | . . 2 . . . . . . . . . . Sentry 18 | . . 7 6 4 . . . . . . . 1 Hunter 4 | . . . 2 1 1 . . . . . . . Programmer 6 | . . . . . . 1 1 . . . 2 2 Behemoth 1 | . . . . 1 . . . . . . . . Best Kill Streak 12 | . 3 8 12 8 3 1 1 . . . 1 6 Combat Bots Only 8 | . 3 6 7 8 2 1 1 . . . 1 6 Max Kills in Single Turn 5 | . 1 5 3 4 1 1 1 . . . 1 2 Gunslinging . | . . . . . . . . . . . . . Exploded 4 | . . 3 2 4 . 1 . . . . . . Melee . | . . . . . . . . . . . . . Uniques/NPCs Destroyed . | . . . . . . . . . . . . . Combat | -11 -10 -9 -8 -8 -8 -7 -6 -5 -5 -5 -4 -4 -------- Run | Scr Mat Mat Mat Gar Mat Fac Fac Fac Was Fac Fac Arm Damage Taken 10651 | . 948 1727 1643 1400 264 436 340 . . . 1894 1999 Core 2341 | . 188 361 254 259 9 45 71 . . . 417 737 Absorbed by Shields 482 | . . . 99 . . 27 . . . . 32 324 Core Remaining (%) 60 | 100 24 9 . . 5 93 91 . . 100 . . Volleys Fired 377 | . 67 110 68 28 24 21 15 . . . 16 28 Largest 2 | . 2 2 2 2 2 1 1 . . . 1 2 Hottest 106 | . 40 79 61 106 106 30 30 . . . 35 70 Shots Fired 692 | . 134 218 136 51 48 21 15 . . . 16 53 Gun 600 | . 134 202 129 23 16 13 14 . . . 16 53 Cannon 65 | . . 10 . 23 32 . . . . . . . Launcher 18 | . . 6 7 5 . . . . . . . . Special 9 | . . . . . . 8 1 . . . . . Kinetic 657 | . 134 208 129 46 44 13 14 . . . 16 53 Thermal 8 | . . 4 . . 4 . . . . . . . Explosive 13 | . . 6 7 . . . . . . . . . Electromagnetic 5 | . . . . 5 . . . . . . . . Robot Hit Streak 17 | . 16 16 17 12 10 2 7 . . . 3 4 Robot Miss Streak 7 | . 3 7 2 4 3 2 1 . . . 2 6 Penetration Max 1 | . . . . . . . . . . . . 1 Secondary Targets 12 | . 2 3 4 . . . . . . . . 3 Max Gunslinging Chain 1 | . 1 1 1 . . . . . . . . 1 Shots Hit Robots 481 | . 96 164 107 31 31 10 12 . . . 9 21 Core Hits 230 | . 30 78 58 23 12 2 4 . . . 4 19 Critical Hits 5 | . . 3 1 . . . . . . . . 1 Critical Kills 3 | . . 2 1 . . . . . . . . . Critical Parts Destroyed 2 | . . 1 . . . . . . . . . 1 Melee Attacks . | . . . . . . . . . . . . . Impact . | . . . . . . . . . . . . . Slashing . | . . . . . . . . . . . . . Piercing . | . . . . . . . . . . . . . Sneak Attacks . | . . . . . . . . . . . . . Combat Hostiles . | . . . . . . . . . . . . . Follow-up Attacks . | . . . . . . . . . . . . . Damage Inflicted 10022 | . 1212 2995 2538 1014 712 104 245 . . . 313 889 Guns 7176 | . 1209 2209 1691 286 230 104 245 . . . 313 889 Cannons 1082 | . . 193 . 407 482 . . . . . . . Explosions 1753 | . . 593 839 321 . . . . . . . . Melee . | . . . . . . . . . . . . . Ramming 11 | . 3 . 8 . . . . . . . . . Kinetic 8131 | . 1209 2335 1691 693 652 104 245 . . . 313 889 Thermal 127 | . . 67 . . 60 . . . . . . . Explosive 1432 | . . 593 839 . . . . . . . . . Electromagnetic 321 | . . . . 321 . . . . . . . . Impact . | . . . . . . . . . . . . . Slashing . | . . . . . . . . . . . . . Piercing . | . . . . . . . . . . . . . Highest Corruption 20 | . 1 3 . . . 1 2 . 8 8 18 20 Average Corruption 5 | . 1 3 . . . 1 1 . 8 8 3 18 Corruption Purged 2 | . . . . . . . . . . . . 2 Effects 77 | . . 18 . . . 3 5 . 2 . 6 43 Message Errors 17 | . . 7 . . . 2 1 . . . 1 6 Matter Fused 11 | . . 3 . . . . . . 1 . 2 5 Heat Flow Errors 7 | . . 3 . . . . 2 . 1 . . 1 Energy Discharges 5 | . . 1 . . . 1 . . . . . 3 Parts Rejected 1 | . . . . . . . . . . . . 1 Data Loss (minor) 7 | . . 1 . . . . 2 . . . 1 3 Data Loss (major) 1 | . . . . . . . . . . . . 1 Misfires 2 | . . . . . . . . . . . . 2 Alerts 1 | . . . . . . . . . . . . 1 Misdirections 6 | . . . . . . . . . . . . 6 Targeting Errors 14 | . . 1 . . . . . . . . 2 11 Weapon Failures 5 | . . 2 . . . . . . . . . 3 Overload Shots . | . . . . . . . . . . . . . Overflow Damage 43 | . . 4 3 . 36 . . . . . . . Projectiles 36 | . . . . . 36 . . . . . . . Explosions 7 | . . 4 3 . . . . . . . . . Melee . | . . . . . . . . . . . . . Knockbacks 15 | . . 7 . 2 6 . . . . . . . Impact . | . . . . . . . . . . . . . Kinetic 12 | . . 5 . 2 5 . . . . . . . Secondary 3 | . . 2 . . 1 . . . . . . . Self-Inflicted Damage 244 | . 1 54 73 116 . . . . . . . . Shots 11 | . . 3 3 5 . . . . . . . . Rammed 3 | . 2 . 1 . . . . . . . . . Targets Rammed 3 | . 2 . 1 . . . . . . . . . Kicked . | . . . . . . . . . . . . . Crushed . | . . . . . . . . . . . . . Highest Temperature 314 | . 2 314 33 111 300 32 270 . 182 . . 130 Average Temperature 64 | . 2 80 12 28 103 13 47 . 76 . . 68 Received Heat Transfer 2095 | . 429 585 618 228 99 27 24 . . . 45 40 Effects 1 | . . . . . 1 . . . . . . . Interference 1 | . . . . . 1 . . . . . . . Siege Activations . | . . . . . . . . . . . . . Robots Corrupted . | . . . . . . . . . . . . . Combat Hostiles . | . . . . . . . . . . . . . Parts Fried 2 | . . . . 2 . . . . . . . . Impact Corruptions . | . . . . . . . . . . . . . Robots Melted . | . . . . . . . . . . . . . Combat Hostiles . | . . . . . . . . . . . . . Parts Melted . | . . . . . . . . . . . . . Heat Transferred 259 | . . 148 . . 111 . . . . . . . Parts Sabotaged . | . . . . . . . . . . . . . Parts Stolen . | . . . . . . . . . . . . . Parts Stripped . | . . . . . . . . . . . . . Power Chain Reactions 2 | . . . . 2 . . . . . . . . Missiles Intercepted . | . . . . . . . . . . . . . Alert | -11 -10 -9 -8 -8 -8 -7 -6 -5 -5 -5 -4 -4 ------- Run | Scr Mat Mat Mat Gar Mat Fac Fac Fac Was Fac Fac Arm Peak Influence 984 | . 191 456 371 984 693 347 127 61 36 11 332 530 Average Influence 232 | . 68 216 121 601 604 203 45 61 22 11 52 263 Maximum Alert Level 3 | . . 2 1 3 2 1 . . . . 2 2 Low Security (%) 55 | 100 100 43 80 . . 35 100 100 100 100 98 36 Level 1 23 | . . 45 19 16 . 64 . . . . 1 51 Level 2 14 | . . 10 . 42 100 . . . . . . 12 Level 3 6 | . . . . 41 . . . . . . . . Level 4 . | . . . . . . . . . . . . . Level 5 . | . . . . . . . . . . . . . High Security . | . . . . . . . . . . . . . Max Security . | . . . . . . . . . . . . . Squads Dispatched 22 | . 2 2 4 . 1 2 1 . . . 7 3 Investigation 9 | . 2 1 1 . . 2 . . . . 3 . Extermination 4 | . . . . . . . . . . . 2 2 Reinforcement 7 | . . 1 1 . 1 . 1 . . . 2 1 Assault . | . . . . . . . . . . . . . Garrison 2 | . . . 2 . . . . . . . . . Intercept . | . . . . . . . . . . . . . Construction Impeded 1 | . . . 1 . . . . . . . . . Haulers Reinforced . | . . . . . . . . . . . . . Stealth | -11 -10 -9 -8 -8 -8 -7 -6 -5 -5 -5 -4 -4 --------- Run | Scr Mat Mat Mat Gar Mat Fac Fac Fac Was Fac Fac Arm Distress Signals 17 | . 1 3 3 . 3 1 1 . . . 3 2 Communications Jammed . | . . . . . . . . . . . . . Distress Signals . | . . . . . . . . . . . . . Times Spotted 260 | . 22 61 34 14 19 15 23 . 4 . 40 28 Peak Tracking Total 13 | . 4 8 4 6 6 5 4 . 4 . 13 7 Tactical Retreats 34 | . 1 4 1 . 3 8 8 . . . 8 1 Traps | -11 -10 -9 -8 -8 -8 -7 -6 -5 -5 -5 -4 -4 ------- Run | Scr Mat Mat Mat Gar Mat Fac Fac Fac Was Fac Fac Arm Traps Triggered 21 | . 3 2 2 7 . 3 2 1 . . 1 . Indirectly 1 | . . . . 1 . . . . . . . . Trap Hack Attempts . | . . . . . . . . . . . . . Triggered . | . . . . . . . . . . . . . Disarmed . | . . . . . . . . . . . . . Reprogrammed . | . . . . . . . . . . . . . Reused . | . . . . . . . . . . . . . Traps Extracted . | . . . . . . . . . . . . . Installed . | . . . . . . . . . . . . . Triggered . | . . . . . . . . . . . . . Machines | -11 -10 -9 -8 -8 -8 -7 -6 -5 -5 -5 -4 -4 ---------- Run | Scr Mat Mat Mat Gar Mat Fac Fac Fac Was Fac Fac Arm Machines Disabled 10 | . . . 3 3 . . . . . . 2 2 Max in Single Turn 2 | . . . 1 1 . . . . . . . 2 Garrison Relay 3 | . . . . 3 . . . . . . . . Machines Sabotaged 1 | . . . . . . . . . . . 1 . Garrisons Compromised . | . . . . . . . . . . . . . Overloaded Fab Kills . | . . . . . . . . . . . . . Fab Network Shutdowns 1 | . . . . . . . . . . . 1 . Hacking | -11 -10 -9 -8 -8 -8 -7 -6 -5 -5 -5 -4 -4 --------- Run | Scr Mat Mat Mat Gar Mat Fac Fac Fac Was Fac Fac Arm Machines Accessed 51 | . 7 8 7 . 3 14 1 . . . 9 2 Terminals 40 | . 7 7 6 . 3 10 1 . . . 5 1 Fabricators 5 | . . . . . . 2 . . . . 2 1 Repair Stations 2 | . . . . . . 1 . . . . 1 . Recycling Units . | . . . . . . . . . . . . . Scanalyzers 2 | . . 1 . . . 1 . . . . . . Garrison Access 2 | . . . 1 . . . . . . . 1 . Total Hacks 159 | . 21 18 22 . 7 46 4 . . . 31 10 Successful 102 | . 11 10 12 . 4 32 2 . . . 25 6 Failed 55 | . 10 8 10 . 3 13 2 . . . 5 4 Catastrophic 11 | . 1 2 3 . 1 1 1 . . . 1 1 Database Lockouts 4 | . . . . . . 2 . . . . 2 . Manual 105 | . 21 10 10 . 9 28 4 . . . 18 5 Terminals 123 | . 21 15 20 . 7 35 4 . . . 15 6 Fabricators 15 | . . . . . . 5 . . . . 6 4 Repair Stations 10 | . . . . . . 4 . . . . 6 . Recycling Units . | . . . . . . . . . . . . . Scanalyzers 5 | . . 3 . . . 2 . . . . . . Garrison Access 6 | . . . 2 . . . . . . . 4 . Terminal Hacks 45 | . 7 6 9 . 1 14 1 . . . 6 1 Record 2 | . . . 1 . . 1 . . . . . . Part Schematic 8 | . 2 . . . . 2 1 . . . 3 . Robot Analysis 9 | . 2 2 2 . . 1 . . . . 1 1 Prototype ID Bank 10 | . 1 1 5 . . 3 . . . . . . Level Access Points 2 | . . . . . 1 1 . . . . . . Emergency Access Points 1 | . . . . . . 1 . . . . . . Terminal Index 2 | . . . . . . 1 . . . . 1 . Fabricator Index 1 | . . . . . . 1 . . . . . . Unreport Threat 3 | . . 2 . . . 1 . . . . . . Locate Traps 1 | . . . 1 . . . . . . . . . Recall Investigation 1 | . . . . . . 1 . . . . . . Recall Reinforcements 1 | . . . . . . . . . . . 1 . Hauler Manifests 3 | . 1 1 . . . 1 . . . . . . Registered Components 1 | . 1 . . . . . . . . . . . Fabricator Hacks 12 | . . . . . . 4 . . . . 4 4 Network Status 1 | . . . . . . . . . . . . 1 Load Schematic 5 | . . . . . . 2 . . . . 2 1 Build 6 | . . . . . . 2 . . . . 2 2 Repair Station Hacks 9 | . . . . . . 3 . . . . 6 . Scan Component 5 | . . . . . . 2 . . . . 3 . Repair 4 | . . . . . . 1 . . . . 3 . Recycling Unit Hacks . | . . . . . . . . . . . . . Scanalyzer 5 | . . 3 . . . 2 . . . . . . Insert Component 3 | . . 2 . . . 1 . . . . . . Analyze 2 | . . 1 . . . 1 . . . . . . Garrison Access Hacks 3 | . . . 1 . . . . . . . 2 . Unlock Access 2 | . . . 1 . . . . . . . 1 . Coupler Status 1 | . . . . . . . . . . . 1 . Unauthorized Hacks 28 | . 4 1 2 . 3 9 1 . . . 7 1 Terminals 25 | . 4 1 2 . 3 8 1 . . . 5 1 Track 1 | . . . . . . . . . . . 1 . Botnet 21 | . 4 1 2 . 3 7 1 . . . 2 1 Operators 2 | . . . . . . 1 . . . . 1 . Sabotage 1 | . . . . . . . . . . . 1 . Fabricators 1 | . . . . . . 1 . . . . . . Siphon 1 | . . . . . . 1 . . . . . . Repair Stations . | . . . . . . . . . . . . . Recycling Units . | . . . . . . . . . . . . . Scanalyzers . | . . . . . . . . . . . . . Garrison Access 2 | . . . . . . . . . . . 2 . Reprogram 1 | . . . . . . . . . . . 1 . Watchers 1 | . . . . . . . . . . . 1 . Data Cores Recovered . | . . . . . . . . . . . . . Used . | . . . . . . . . . . . . . Hacking Detections 45 | . 7 8 6 . 3 14 1 . . . 5 1 Full Trace Events 3 | . 1 . 1 . . . . . . . 1 . Feedback Events . | . . . . . . . . . . . . . Feedback Blocked . | . . . . . . . . . . . . . Robot Schematics Acquired . | . . . . . . . . . . . . . Robots Built . | . . . . . . . . . . . . . Matter . | . . . . . . . . . . . . . Time . | . . . . . . . . . . . . . Total Robot Build Rating . | . . . . . . . . . . . . . Part Schematics Acquired 10 | . 2 1 . . . 3 1 . . . 3 . Parts Built 7 | . . . . . . 3 . . . . 2 2 Matter 966 | . . . . . . 250 . . . . 380 336 Time 425 | . . . . . . 115 . . . . 142 168 Total Part Build Rating 26 | . . . . . . 8 . . . . 10 8 Parts Repaired 4 | . . . . . . 1 . . . . 3 . Time 148 | . . . . . . 22 . . . . 126 . Parts Recycled . | . . . . . . . . . . . . . Recycled Matter . | . . . . . . . . . . . . . Retrieved Matter . | . . . . . . . . . . . . . Retrieved Components . | . . . . . . . . . . . . . Parts Scanalyzed 2 | . . 1 . . . 1 . . . . . . Part Schematics Acquired 2 | . . 1 . . . 1 . . . . . . Parts Damaged . | . . . . . . . . . . . . . Bothacking | -11 -10 -9 -8 -8 -8 -7 -6 -5 -5 -5 -4 -4 ------------ Run | Scr Mat Mat Mat Gar Mat Fac Fac Fac Was Fac Fac Arm Used RIF Installer 1 | . . . . 1 . . . . . . . . Robots Hacked 5 | . . . . . . 4 1 . . . . . Non-combat 3 | . . . . . . 3 . . . . . . Combat 2 | . . . . . . 1 1 . . . . . Robot Hacks Applied 5 | . . . . . . 4 1 . . . . . ignore_parts 2 | . . . . . . 2 . . . . . . mark_security 1 | . . . . . . 1 . . . . . . amplify_resonance 2 | . . . . . . 1 1 . . . . . Relay Couplers Released 11 | . . . . 11 . . . . . . . . Machine Destruction 11 | . . . . 11 . . . . . . . . Attached 2 | . . . . . 1 1 . . . . . . Robots Rewired 3 | . . . . . . . . . . . . 3 Allies Hacked . | . . . . . . . . . . . . . Hacks Repelled . | . . . . . . . . . . . . . Allies | -11 -10 -9 -8 -8 -8 -7 -6 -5 -5 -5 -4 -4 -------- Run | Scr Mat Mat Mat Gar Mat Fac Fac Fac Was Fac Fac Arm Total Allies 6 | . . . . . . . . . 1 . 2 3 Largest Group 3 | . . . . . . . . . 1 . 2 3 Highest-Rated Group 166 | . . . . . . . . . 31 . 112 166 Highest-Rated Ally 60 | . . . . . . . . . 31 . 56 60 Total Orders 5 | . . . . . . . . . . . . 5 ROAM 5 | . . . . . . . . . . . . 5 Ally Attacks 35 | . . . . . . . . . 12 . 6 17 Total Damage 1124 | . . . . . . . . . 209 . 199 716 Kills 4 | . . . . . . . . . . . . 4 Allies Corrupted . | . . . . . . . . . . . . . Allies Melted . | . . . . . . . . . . . . . Intel | -11 -10 -9 -8 -8 -8 -7 -6 -5 -5 -5 -4 -4 ------- Run | Scr Mat Mat Mat Gar Mat Fac Fac Fac Was Fac Fac Arm Robot Analysis Total 9 | . 2 2 2 . . 1 . . . . 1 1 Derelict Logs Recovered . | . . . . . . . . . . . . . Drone Launches 12 | . . . . . . . . . . . . 12 Drone Recoveries . | . . . . . . . . . . . . . Exploration | -11 -10 -9 -8 -8 -8 -7 -6 -5 -5 -5 -4 -4 ------------- Run | Scr Mat Mat Mat Gar Mat Fac Fac Fac Was Fac Fac Arm Turns Passed 9441 | 78 1104 2048 1426 1439 426 737 676 7 94 13 810 583 Spaces Moved 8040 | 42 548 927 715 675 370 1497 1229 20 210 42 1383 382 Core 182 | 4 . . . 10 . . . . . . 87 81 Treads 1837 | 38 426 483 151 554 128 . . . . . . 57 Legs 1245 | . 122 444 309 111 . . . . . . 15 244 Wheels 263 | . . . 255 . . . . . . . 8 . Hover 10 | . . . . . . . . . . . 10 . Flight 4503 | . . . . . 242 1497 1229 20 210 42 1263 . Fastest Speed 29 | 50 120 150 130 150 29 29 31 31 31 31 31 50 Average Speed 88 | 153 152 170 154 192 79 30 31 31 31 31 40 114 Slowest Speed 1200 | 160 160 200 240 1200 180 34 31 31 31 31 125 180 Overloaded Moves . | . . . . . . . . . . . . . Propulsion Burnouts . | . . . . . . . . . . . . . Robots Hopped 21 | . . . . . . 8 4 . . . 9 . Cave-ins Triggered . | . . . . . . . . . . . . . Exploration Rate (%) 38 | 5 86 61 56 76 17 35 20 1 90 2 33 24 Regions Visited 12 Branch Regions 1 Pre-discovered Areas . | . . . . . . . . . . . . . Known Exits Taken 6 | . . . 1 . 1 1 1 . . 1 1 . Unknown Exits Taken 3 | 1 1 1 . . . . . . . . . . Scrap Searched . | . . . . . . . . . . . . . Spaces Dug . | . . . . . . . . . . . . . Terrain Destroyed 130 | . . 48 42 3 15 . . . . . 1 21 Melee . | . . . . . . . . . . . . . Projectile 17 | . . . . 1 15 . . . . . 1 . AOE 113 | . . 48 42 2 . . . . . . . 21 Actions | -11 -10 -9 -8 -8 -8 -7 -6 -5 -5 -5 -4 -4 --------- Run | Scr Mat Mat Mat Gar Mat Fac Fac Fac Was Fac Fac Arm Total 9740 | 53 685 1195 925 778 462 1754 1507 21 238 41 1611 470 Wait 770 | . 28 32 24 4 16 206 243 . 28 . 185 4 Move 7988 | 41 547 926 715 674 369 1480 1220 20 209 41 1364 382 Hop 21 | . . . . . . 8 4 . . . 9 . Pick Up 147 | 6 11 46 35 17 10 5 5 . 1 . 2 9 Fast Attach 88 | 6 8 8 11 9 12 9 3 . . . 13 9 Attach 53 | . 3 9 11 7 5 3 6 1 . . 3 5 Detach 23 | . 2 3 . 4 3 2 5 . . . 2 2 Swap 41 | . 4 14 14 4 . 2 3 . . . . . Drop 164 | . 13 47 46 18 23 6 3 . . . 5 3 Fire 377 | . 67 110 68 28 24 21 15 . . . 16 28 Melee . | . . . . . . . . . . . . . Ram . | . . . . . . . . . . . . . Kick 3 | . 2 . 1 . . . . . . . . . Crush . | . . . . . . . . . . . . . Escape Stasis 37 | . . . . 13 . 12 . . . . 12 . Rewire 24 | . . . . . . . . . . . . 24 Trap . | . . . . . . . . . . . . . Miscellaneous 4 | . . . . . . . . . . . . 4 Route ------- -11/Scrapyard -10/Materials (discovered 4 exits: *Mat x3 / [*Min]) -9/Materials (discovered 2 exits: *Mat / [*Min]) -8/Materials (discovered 2 exits: *Fac / Gar) -8/Garrison (discovered 3 exits: *Mat x3) -8/Materials (discovered 4 exits: *Fac x3 / [*Sto]) -7/Factory (discovered 4 exits: *Fac x4) -6/Factory -5/Factory -5/Waste -5/Factory -4/Factory (discovered 2 exits: *Arm / Gar) -4/Armory History --------- Turn | Location | Event 8 | -11/Scrapyard | Discovered new exit (range 15) 79 | -11/Scrapyard | Entered Materials 217 | -10/Materials | Discovered new exit (range 10) 279 | -10/Materials | Discovered new exit (range 3) 311 | -10/Materials | Build established: Mutant 611 | -10/Materials | Discovered new exit (range 16) 907 | -10/Materials | Core integrity fell below 50% 1180 | -10/Materials | Discovered new exit (range 3) 1183 | -10/Materials | Entered another Materials area 1183 | -9/Materials | Evolved 2 slots: Utility x2 2162 | -9/Materials | Discovered new exit (range 14) 2228 | -9/Materials | Core integrity fell below 50% 2822 | -9/Materials | Discovered new exit (range 15) 2878 | -9/Materials | Build established: Hauler-Mutant 3047 | -9/Materials | Core integrity fell below 20% 3231 | -9/Materials | Entered another Materials area 3231 | -8/Materials | Evolved 2 slots: Propulsion x1, Utility x1 4310 | -8/Materials | Discovered new exit (range 8) 4541 | -8/Materials | Garrison activated, responded to threat 4619 | -8/Materials | Destroyed 7 combat bots 4657 | -8/Materials | Identified exit to Garrison 4657 | -8/Materials | Entered Garrison 4744 | -8/Garrison | Triggered checkpoint 4755 | -8/Garrison | Core integrity fell below 50% 4757 | -8/Garrison | Triggered checkpoint 4783 | -8/Garrison | Destroyed 8 combat bots 4864 | -8/Garrison | Spotted B-75 Beast 4927 | -8/Garrison | Lost 7 parts (5n2w) 4931 | -8/Garrison | Core integrity fell below 20% 4933 | -8/Garrison | Destroyed B-75 Beast 5154 | -8/Garrison | Discovered new exit (range 8) 5244 | -8/Garrison | Triggered checkpoint 5375 | -8/Garrison | Discovered new exit (range 10) 5410 | -8/Garrison | Build established: Scavenger-Mutant 5444 | -8/Garrison | Triggered checkpoint 5481 | -8/Garrison | Garrison Relay disabled 5652 | -8/Garrison | Triggered checkpoint 5673 | -8/Garrison | Garrison Relay disabled 5830 | -8/Garrison | Triggered checkpoint 5896 | -8/Garrison | Garrison Relay disabled 6042 | -8/Garrison | Discovered new exit (range 15) 6087 | -8/Garrison | Installed Relay Interface Framework 6096 | -8/Garrison | Entered Materials 6434 | -8/Materials | Identified exit to Factory 6514 | -8/Materials | Discovered new exit (range 15) 6522 | -8/Materials | Entered Factory 6522 | -7/Factory | Evolved 2 slots: Power x1, Utility x1 6560 | -7/Factory | Fabricated Imp. Signal Interpreter? 6687 | -7/Factory | Build established: Hacker-Sprinter 6943 | -7/Factory | Lost 4 parts (1p2n1w) 7014 | -7/Factory | Central database locked down 7084 | -7/Factory | Repaired Mic. Nuclear Core 7128 | -7/Factory | Identified exit to Factory 7239 | -7/Factory | Fabricated Lrn. Sensor Array (x1) 7259 | -7/Factory | Entered another Factory area 7259 | -6/Factory | Evolved 2 slots: Propulsion x1, Utility x1 7744 | -6/Factory | Found Prototype Processor 7744 | -6/Factory | Identified Exp. Targeting Computer 7923 | -6/Factory | Discovered new exit (range 5) 7935 | -6/Factory | Identified exit to Factory 7935 | -6/Factory | Entered another Factory area 7935 | -5/Factory | Evolved 2 slots: Utility x2 7942 | -5/Factory | Sucked down chute 7942 | -5/Factory | Entered Waste 7943 | -5/Waste | Met a frightened Derelict 7957 | -5/Waste | EMP discharged 7963 | -5/Waste | Spotted C-40 Crusher 7968 | -5/Waste | Spotted C-40 Crusher 7983 | -5/Waste | Spotted C-40 Crusher 8018 | -5/Waste | Spotted C-40 Crusher 8021 | -5/Waste | Spotted C-40 Crusher 8022 | -5/Waste | Spotted C-40 Crusher 8028 | -5/Waste | Discovered new exit (range 16) 8036 | -5/Waste | Identified exit to Factory 8036 | -5/Waste | Entered Factory 8041 | -5/Factory | Discovered new exit (range 15) 8045 | -5/Factory | Identified exit to Factory 8049 | -5/Factory | Entered another Factory area 8049 | -4/Factory | Evolved 2 slots: Propulsion x2 8055 | -4/Factory | Identified exit to Garrison 8131 | -4/Factory | Repaired Xenon Bombardment Thruster 8185 | -4/Factory | Repaired Mic. Nuclear Core 8224 | -4/Factory | Repaired Nuclear Core 8350 | -4/Factory | Build established: Hacker-Mutant 8511 | -4/Factory | Fabricated Imp. Hacking Suite (x1) 8630 | -4/Factory | Central database locked down 8654 | -4/Factory | Discovered new exit (range 12) 8717 | -4/Factory | Fabricated Imp. Hacking Suite? 8786 | -4/Factory | System corruption reached 10% 8826 | -4/Factory | Lost 13 parts (2p5n4u2w) 8848 | -4/Factory | Local fabrication network quarantined 8857 | -4/Factory | Identified exit to Armory 8859 | -4/Factory | Entered Armory 9097 | -4/Armory | Build established: Mutant 9220 | -4/Armory | Fabricated Lrn. Sensor Array (x1) 9383 | -4/Armory | Core integrity fell below 50% 9384 | -4/Armory | Fabricated Lrn. Sensor Array (x1) 9426 | -4/Armory | Core integrity fell below 20% 9442 | -4/Armory | Destroyed by P-70 Sage with High-powered Shock Rifle Last Messages --------------- 09397_ Railgun destroyed. 09398_ System corrupted: Energy discharge (-36). 09399_ The unstable cave ceiling collapses. 09399_ Penetrated by Slug. 09399_ Centrium Leg destroyed. 09399_ Penetrated by Slug. 09399_ Slug penetrates Wall. 09402_ Relay Coupler [Swarmer] destroyed. 09402_ Slug penetrates Wall. 09403_ Dropped Med. Storage Unit. 09406_ The unstable cave ceiling collapses. 09423_ Mini Drone destroyed. 09425_ Penetrated by Slug. 09425_ Slug penetrates Wall. 09425_ Imp. Target Analyzer destroyed. 09428_ Slug penetrates Wall. 09434_ Slug penetrates Door. 09434_ Slug penetrates Wall. 09434_ Penetrated by Slug. 09438_ Slug penetrates Wall. Map ----- +----------------------------------------------------+ | | | | | | | | | | | | | | | | | | | | | ?????????????????##???#########################?#? | | ????????????????? ???# # ?? | | ??????????????#?? ???# """ """ """ # ? | | ??????????????# ? "?## """ """ """ # """ """ """? | | ??????????????# ? " ## """ """ """ # """ """ """? | | ??????????????# ? " ## # """ """ """ | | ??????????????# " " ?# """ # | | ??????????????# ?# """ # """ """ """ | | ??????????????? ??# """ # """ """ """ | | ??????????????? ??# """Y""" # """ """ """ | | ???????????????? ???# """"""" # | | ???????????????? ???# # ! | | ???#######/######+############+###########+#"##### | | g% #??? | | g #??? | | g @ #??? | | p #??? | | ###############+######################"### #??? | | ???????????? #??????????# ## #??? | | ??????????# """"""" ############ "# ##?? | | ??????????# """"""" # ## " #?? | | ??????????# """"""" ## *! ## " #?? | | ??????????# ## *! ## " #?? | | ??????????# ## !! !## " " #?? | | ??????????# [ ## ## "" " #?? | | ??????????# [ ## " "" ## "" " #?? | | ??????????##########"### "R"" ! ## "" ### ###?? | | ??????????# / ## #?# """ ## "" #?# #???? | | ??????????# """ ## #?# ## " #?# #???? | | ??????????# """ ##=#?#####+##### #?# #???? | | ??????????# """ ## #???# ^############# #???? | | ??????????# ##"#####! #???? | | ??????????# !!! ##!!=%[ #???? | | ?????????## !!! ##!!*%* / ## #### #### ##???? | | ?????????# !! ##! ="" "####"#??# #????? | | ????????## ##=!!"" ! # ! #??# #????? | | ????????# ##=* F" *!* ] #??# #?#### | | ???????## ## "" ! #??# #?# # | | ???????# # #??# #?# # | | ????????# """" ####+### # | +----------------------------------------------------+ Best States ------------- Heat Dissipation 45 Energy Generation 28 Energy Capacity 290 Matter Stores 300 Matter Capacity 300 Sight Range 16 Robot Scan Range 20 Terrain Scan Density 10 Armor Coverage 300 Resistance: EM 15 Evasion (%) 69 Melee Accuracy 6 Target Analysis 6 Core Analysis 8 Recoil Reduction 3 Offensive Hacking 32 Defensive Hacking 10 Item Schematics ----------------- Med. Storage Unit | -10/Materials | Hacked Lrg. Storage Unit | -10/Materials | Hacked Imp. Signal Interpreter | -9/Materials | Scanalyzed Lrn. Sensor Array | -7/Factory | Hacked Adv. Signal Interpreter | -7/Factory | Hacked Maneuvering Thrusters | -7/Factory | Scanalyzed Imp. Hacking Suite | -6/Factory | Hacked Biomechanical Wings | -4/Factory | Hacked Exp. Cesium-ion Thruster | -4/Factory | Hacked Field Propulsion Array | -4/Factory | Hacked Robot Schematics ------------------ None Fabricated ------------ Imp. Signal Interpreter | x2 | -7/Factory Lrn. Sensor Array | x1 | -7/Factory Imp. Hacking Suite | x1 | -4/Factory Imp. Hacking Suite | x1 | -4/Factory Lrn. Sensor Array | x1 | -4/Armory Lrn. Sensor Array | x1 | -4/Armory Alien Tech Used ----------------- None Achievements -------------- None Challenges ------------ None Game ------ Seed AssemblyLaserChronowheel Manual? 0 Play Time 02:13:35 Cumulative 151.5 hours Start 2020.06.22 @ 17:25:32 End 2020.06.22 @ 19:47:22 Sessions 1 Manual Loads 0 Difficulty Rogue Special Mode None Game No. 78 Rogue 76 Adventurer 1 Explorer 1 Win Type - Total 2 Types 2/0/0/0/0/0/0 Lore% 57 Gallery% 70 Achievement% 52 Wizard Run 0 Options --------- ASCII 0 Keyboard 1 Movement Numpad Keybinds 0 Fullscreen 2 Font 24/Terminus Map View 76x50 Tactical HUD 1 Map Filters NONE Filters NONE Steam 1 RUN: 9f0348e3-f85f-4df3-84d5-98687607756e